[Event "Early-Titled-Tuesday-Blitz-January-30-2024"]
[Site "Chess.com"]
[Date "2024.01.30"]
[Round "6"]
[White "KuzubovYuriy"]
[Black "wonderfultime"]
[Result "1-0"]
[WhiteElo "2910"]
[BlackElo "3000"]
[TimeControl "180+1"]
[EndTime "9:09:07 PST"]
[Termination "KuzubovYuriy won on time"]

1. d4 {[%clk 0:03:00.9]} 1... d5 {[%clk 0:02:58.6]} 2. c4 {[%clk 0:03:01.2]}
2... c6 {[%clk 0:02:59]} 3. Nf3 {[%clk 0:03:01.6]} 3... Nf6 {[%clk 0:02:59.4]}
4. Nc3 {[%clk 0:03:02]} 4... a6 {[%clk 0:02:59.6]} 5. e3 {[%clk 0:03:01.9]} 5...
Bf5 {[%clk 0:02:59.6]} 6. Nh4 {[%clk 0:03:01.6]} 6... Be4 {[%clk 0:02:55.6]} 7.
f3 {[%clk 0:03:01.3]} 7... Bg6 {[%clk 0:02:56.2]} 8. Qb3 {[%clk 0:03:01.7]} 8...
b5 {[%clk 0:02:55.1]} 9. cxd5 {[%clk 0:03:01.4]} 9... cxd5 {[%clk 0:02:55.4]}
10. Bd2 {[%clk 0:02:56.1]} 10... e6 {[%clk 0:02:54]} 11. Rc1 {[%clk 0:02:49.7]}
11... Bd6 {[%clk 0:02:42.8]} 12. g3 {[%clk 0:02:45]} 12... Bh5 {[%clk 0:02:40]}
13. Be2 {[%clk 0:02:39.8]} 13... O-O {[%clk 0:02:33.1]} 14. O-O {[%clk
0:02:37.6]} 14... Nbd7 {[%clk 0:02:29.3]} 15. a4 {[%clk 0:02:21.5]} 15... b4
{[%clk 0:02:21.2]} 16. Nd1 {[%clk 0:02:21.8]} 16... a5 {[%clk 0:01:50.8]} 17.
Nf2 {[%clk 0:02:19.3]} 17... Nb6 {[%clk 0:01:32.5]} 18. Rc6 {[%clk 0:02:09.4]}
18... Nc4 {[%clk 0:01:25.3]} 19. Bxc4 {[%clk 0:02:01.5]} 19... dxc4 {[%clk
0:01:26.2]} 20. Qxc4 {[%clk 0:02:02.2]} 20... g5 {[%clk 0:01:26.1]} 21. g4
{[%clk 0:02:02.7]} 21... gxh4 {[%clk 0:01:06.2]} 22. gxh5 {[%clk 0:02:02.7]}
22... Kh8 {[%clk 0:01:07]} 23. Kh1 {[%clk 0:01:55]} 23... Rg8 {[%clk 0:01:06.8]}
24. Qe2 {[%clk 0:01:36.7]} 24... Nxh5 {[%clk 0:01:02]} 25. Nh3 {[%clk
0:01:21.2]} 25... Qd7 {[%clk 0:00:49.8]} 26. Rc4 {[%clk 0:00:53.6]} 26... e5
{[%clk 0:00:46.2]} 27. Nf2 {[%clk 0:00:52.6]} 27... Rae8 {[%clk 0:00:42]} 28.
dxe5 {[%clk 0:00:49.8]} 28... Bxe5 {[%clk 0:00:42.9]} 29. Rxh4 {[%clk
0:00:49.1]} 29... Qf5 {[%clk 0:00:36.5]} 30. e4 {[%clk 0:00:44]} 30... Qg6
{[%clk 0:00:33.8]} 31. Ng4 {[%clk 0:00:43.7]} 31... Bg7 {[%clk 0:00:27]} 32. Qb5
{[%clk 0:00:36.8]} 32... Nf6 {[%clk 0:00:24.1]} 33. Ne5 {[%clk 0:00:35.8]} 33...
Rxe5 {[%clk 0:00:20.3]} 34. Qxe5 {[%clk 0:00:36.7]} 34... Nd7 {[%clk 0:00:08.8]}
35. Qb5 {[%clk 0:00:17.8]} 35... Ne5 {[%clk 0:00:09.2]} 36. Rg1 {[%clk
0:00:17.4]} 36... Qf6 {[%clk 0:00:03.4]} 37. Rf4 {[%clk 0:00:16.3]} 37... Qe6
{[%clk 0:00:04.1]} 38. Rf5 {[%clk 0:00:15.6]} 38... Ng6 {[%clk 0:00:03.9]} 39.
Bc1 {[%clk 0:00:14.2]} 39... h6 {[%clk 0:00:02.7]} 40. Qd5 {[%clk 0:00:14.3]}
40... Qxd5 {[%clk 0:00:01.9]} 41. Rxd5 {[%clk 0:00:14.3]} 41... Nh4 {[%clk
0:00:02.2]} 42. Rf1 {[%clk 0:00:13.7]} 42... Rc8 {[%clk 0:00:02.4]} 43. Rxa5
{[%clk 0:00:12.9]} 43... Rc2 {[%clk 0:00:02.2]} 44. Rh5 {[%clk 0:00:13.6]} 44...
Ng6 {[%clk 0:00:02.2]} 45. a5 {[%clk 0:00:13.9]} 45... Bxb2 {[%clk 0:00:01.6]}
46. Bxb2+ {[%clk 0:00:13.9]} 46... Rxb2 {[%clk 0:00:02.5]} 47. Ra1 {[%clk
0:00:13.3]} 47... Nf4 {[%clk 0:00:01.3]} 48. a6 {[%clk 0:00:13.3]} 1-0

[Event "Early-Titled-Tuesday-Blitz-January-30-2024"]
[Site "Chess.com"]
[Date "2024.01.30"]
[Round "6"]
[White "margarita_2703"]
[Black "kamilianin235"]
[Result "1-0"]
[WhiteElo "2344"]
[BlackElo "2492"]
[TimeControl "180+1"]
[EndTime "9:09:08 PST"]
[Termination "margarita_2703 won by resignation"]

1. e4 {[%clk 0:03:00.9]} 1... c5 {[%clk 0:02:46.9]} 2. Nf3 {[%clk 0:02:53.6]}
2... e6 {[%clk 0:02:42.9]} 3. c3 {[%clk 0:02:52.7]} 3... Nf6 {[%clk 0:02:40.9]}
4. e5 {[%clk 0:02:52.8]} 4... Nd5 {[%clk 0:02:40]} 5. d4 {[%clk 0:02:53.7]} 5...
cxd4 {[%clk 0:02:38.7]} 6. Qxd4 {[%clk 0:02:53.3]} 6... Nc6 {[%clk 0:02:36.8]}
7. Qe4 {[%clk 0:02:51.7]} 7... f5 {[%clk 0:02:35.4]} 8. Qe2 {[%clk 0:02:50]}
8... Be7 {[%clk 0:02:33.1]} 9. g3 {[%clk 0:02:42.2]} 9... O-O {[%clk 0:02:31.6]}
10. Bg2 {[%clk 0:02:42.3]} 10... b6 {[%clk 0:02:29.7]} 11. O-O {[%clk 0:02:42]}
11... Bb7 {[%clk 0:02:29]} 12. c4 {[%clk 0:02:39.6]} 12... Nc7 {[%clk
0:02:26.4]} 13. Rd1 {[%clk 0:02:38.7]} 13... Bc5 {[%clk 0:02:24.2]} 14. a3
{[%clk 0:02:38.3]} 14... a5 {[%clk 0:02:22.8]} 15. Nc3 {[%clk 0:02:38.4]} 15...
Qe7 {[%clk 0:02:20.4]} 16. h4 {[%clk 0:02:35.1]} 16... a4 {[%clk 0:02:06.3]} 17.
Bg5 {[%clk 0:02:31.4]} 17... Qf7 {[%clk 0:02:02.4]} 18. Nb5 {[%clk 0:02:26]}
18... Nxb5 {[%clk 0:01:52]} 19. cxb5 {[%clk 0:02:26.9]} 19... Na5 {[%clk
0:01:52.2]} 20. Be3 {[%clk 0:02:06.1]} 20... Nb3 {[%clk 0:01:35.5]} 21. Bxc5
{[%clk 0:02:02.2]} 21... bxc5 {[%clk 0:01:18]} 22. Ng5 {[%clk 0:02:00.8]} 22...
Qe7 {[%clk 0:00:45.2]} 23. Bxb7 {[%clk 0:01:59.6]} 23... Rab8 {[%clk 0:00:44.9]}
24. Bg2 {[%clk 0:01:57.9]} 24... Nxa1 {[%clk 0:00:41.2]} 25. Rxa1 {[%clk
0:01:57.7]} 25... Rfc8 {[%clk 0:00:39.9]} 26. Rd1 {[%clk 0:01:51.2]} 26... c4
{[%clk 0:00:39.6]} 27. Rd6 {[%clk 0:01:49.3]} 27... Rxb5 {[%clk 0:00:37.8]} 28.
Qd2 {[%clk 0:01:36.6]} 28... Rc7 {[%clk 0:00:23.7]} 29. Qd4 {[%clk 0:01:29.1]}
29... h6 {[%clk 0:00:18.4]} 30. Nf3 {[%clk 0:01:27.2]} 30... Rb3 {[%clk
0:00:17.7]} 31. Nd2 {[%clk 0:01:07.8]} 31... Rd3 {[%clk 0:00:16.9]} 32. Qb6
{[%clk 0:01:07.7]} 32... Rc8 {[%clk 0:00:13.5]} 33. Nxc4 {[%clk 0:01:03.3]}
33... Rb3 {[%clk 0:00:08.8]} 34. Qd4 {[%clk 0:01:01]} 34... Kh7 {[%clk 0:00:04]}
35. Ne3 {[%clk 0:00:43.9]} 35... Rc1+ {[%clk 0:00:02]} 36. Kh2 {[%clk
0:00:41.4]} 36... Rc7 {[%clk 0:00:02.9]} 37. Rb6 {[%clk 0:00:35.2]} 37... Rxb6
{[%clk 0:00:02.4]} 38. Qxb6 {[%clk 0:00:36.1]} 38... Qd8 {[%clk 0:00:01.5]} 39.
Nc4 {[%clk 0:00:33.4]} 39... f4 {[%clk 0:00:01.9]} 40. Nd6 {[%clk 0:00:31.8]}
40... fxg3+ {[%clk 0:00:02.4]} 41. fxg3 {[%clk 0:00:31.9]} 41... Kg8 {[%clk
0:00:01.1]} 42. Nb5 {[%clk 0:00:30.9]} 42... Rc8 {[%clk 0:00:01.5]} 43. Qxd8+
{[%clk 0:00:27.9]} 43... Rxd8 {[%clk 0:00:02.4]} 44. Nc3 {[%clk 0:00:28.1]}
44... Rb8 {[%clk 0:00:02.9]} 45. Nxa4 {[%clk 0:00:27.9]} 45... Rb5 {[%clk
0:00:03.2]} 46. b4 {[%clk 0:00:26.1]} 46... Rxe5 {[%clk 0:00:03.5]} 47. Nc5
{[%clk 0:00:25.9]} 47... Re3 {[%clk 0:00:03.7]} 48. a4 {[%clk 0:00:23.9]} 48...
d5 {[%clk 0:00:04.2]} 49. a5 {[%clk 0:00:23.9]} 49... Ra3 {[%clk 0:00:04.8]} 50.
a6 {[%clk 0:00:23.3]} 50... d4 {[%clk 0:00:05.5]} 51. b5 {[%clk 0:00:22.9]}
51... d3 {[%clk 0:00:05.9]} 52. Nxd3 {[%clk 0:00:20.4]} 52... Rxd3 {[%clk
0:00:06.8]} 53. a7 {[%clk 0:00:20.6]} 1-0

[Event "Early-Titled-Tuesday-Blitz-January-30-2024"]
[Site "Chess.com"]
[Date "2024.01.30"]
[Round "6"]
[White "Jospem"]
[Black "Kiborg95"]
[Result "1-0"]
[WhiteElo "3064"]
[BlackElo "2860"]
[TimeControl "180+1"]
[EndTime "9:09:10 PST"]
[Termination "Jospem won on time"]

1. e4 {[%clk 0:02:59.2]} 1... d6 {[%clk 0:03:00.9]} 2. Nc3 {[%clk 0:02:57.3]}
2... e5 {[%clk 0:03:00.2]} 3. Bc4 {[%clk 0:02:57.8]} 3... Be7 {[%clk 0:03:00.3]}
4. d3 {[%clk 0:02:58.4]} 4... c6 {[%clk 0:02:49.3]} 5. a3 {[%clk 0:02:58.3]}
5... Nf6 {[%clk 0:02:45.9]} 6. Nf3 {[%clk 0:02:57.7]} 6... O-O {[%clk
0:02:45.2]} 7. O-O {[%clk 0:02:57.6]} 7... b5 {[%clk 0:02:45.4]} 8. Ba2 {[%clk
0:02:57]} 8... a5 {[%clk 0:02:46.1]} 9. Ne2 {[%clk 0:02:54.6]} 9... a4 {[%clk
0:02:38]} 10. Ng3 {[%clk 0:02:54.5]} 10... Re8 {[%clk 0:02:38.2]} 11. Ng5 {[%clk
0:02:53.1]} 11... Rf8 {[%clk 0:02:37.9]} 12. Nf3 {[%clk 0:02:53.3]} 12... Be6
{[%clk 0:02:33.9]} 13. Bxe6 {[%clk 0:02:44.1]} 13... fxe6 {[%clk 0:02:34.8]} 14.
h3 {[%clk 0:02:44]} 14... c5 {[%clk 0:02:24.8]} 15. c3 {[%clk 0:02:40.6]} 15...
Nc6 {[%clk 0:02:24.1]} 16. Be3 {[%clk 0:02:41.2]} 16... d5 {[%clk 0:02:15.4]}
17. Bg5 {[%clk 0:02:41.1]} 17... Qd6 {[%clk 0:02:06.8]} 18. Qe2 {[%clk
0:02:37.8]} 18... h6 {[%clk 0:02:00.6]} 19. Bxf6 {[%clk 0:02:36.2]} 19... Bxf6
{[%clk 0:02:01.5]} 20. Rac1 {[%clk 0:02:31.1]} 20... Rfd8 {[%clk 0:02:01]} 21.
Rfe1 {[%clk 0:02:26.2]} 21... Rab8 {[%clk 0:02:00.9]} 22. Nf1 {[%clk 0:02:17.4]}
22... b4 {[%clk 0:01:57.4]} 23. N1d2 {[%clk 0:01:51.2]} 23... bxa3 {[%clk
0:01:51.8]} 24. bxa3 {[%clk 0:01:52.1]} 24... Qc7 {[%clk 0:01:37.2]} 25. exd5
{[%clk 0:01:38.3]} 25... exd5 {[%clk 0:01:38.1]} 26. c4 {[%clk 0:01:39]} 26...
d4 {[%clk 0:00:44.2]} 27. Ne4 {[%clk 0:01:32.2]} 27... Qe7 {[%clk 0:00:44.3]}
28. Nfd2 {[%clk 0:01:22.4]} 28... Na5 {[%clk 0:00:39.6]} 29. Rb1 {[%clk
0:01:22.2]} 29... Nb3 {[%clk 0:00:33.3]} 30. Qd1 {[%clk 0:01:22]} 30... Nxd2
{[%clk 0:00:28.3]} 31. Qxd2 {[%clk 0:01:19.8]} 31... Rb3 {[%clk 0:00:26.2]} 32.
Ra1 {[%clk 0:01:01.2]} 32... Rdb8 {[%clk 0:00:25.4]} 33. Ra2 {[%clk 0:01:01.9]}
33... Kh7 {[%clk 0:00:14]} 34. Qe2 {[%clk 0:01:01.7]} 34... Rb1 {[%clk
0:00:11.4]} 35. Ra1 {[%clk 0:00:59]} 35... Rxa1 {[%clk 0:00:10.6]} 36. Rxa1
{[%clk 0:00:59.9]} 36... Rb3 {[%clk 0:00:10.9]} 37. Qg4 {[%clk 0:00:54.7]} 37...
Qf7 {[%clk 0:00:09.9]} 38. Nxc5 {[%clk 0:00:51.6]} 38... Rc3 {[%clk 0:00:10.2]}
39. Qf5+ {[%clk 0:00:45.9]} 39... Qg6 {[%clk 0:00:10.7]} 40. Qf3 {[%clk
0:00:29.1]} 40... Be7 {[%clk 0:00:09.6]} 41. Ne4 {[%clk 0:00:29.7]} 41... Rxa3
{[%clk 0:00:09.7]} 42. Rxa3 {[%clk 0:00:29.7]} 42... Bxa3 {[%clk 0:00:10.6]} 43.
Qd1 {[%clk 0:00:30.3]} 43... Qa6 {[%clk 0:00:09]} 44. Qg4 {[%clk 0:00:31]} 44...
Be7 {[%clk 0:00:08.8]} 45. Qf5+ {[%clk 0:00:31.2]} 45... Kg8 {[%clk 0:00:07.8]}
46. Qxe5 {[%clk 0:00:29.7]} 46... Kf7 {[%clk 0:00:07.7]} 47. Qd5+ {[%clk
0:00:25.8]} 47... Kf8 {[%clk 0:00:08.2]} 48. c5 {[%clk 0:00:21.6]} 48... a3
{[%clk 0:00:08.7]} 49. Nd6 {[%clk 0:00:17.3]} 49... Bxd6 {[%clk 0:00:07.7]} 50.
cxd6 {[%clk 0:00:18.2]} 50... a2 {[%clk 0:00:08]} 51. d7 {[%clk 0:00:14.7]}
51... a1=Q+ {[%clk 0:00:06.9]} 52. Kh2 {[%clk 0:00:15.1]} 1-0

[Event "Early-Titled-Tuesday-Blitz-January-30-2024"]
[Site "Chess.com"]
[Date "2024.01.30"]
[Round "6"]
[White "ritanovikova"]
[Black "Licancabur"]
[Result "0-1"]
[WhiteElo "2201"]
[BlackElo "2433"]
[TimeControl "180+1"]
[EndTime "9:09:11 PST"]
[Termination "Licancabur won on time"]

1. e4 {[%clk 0:02:59.8]} 1... Nf6 {[%clk 0:02:57.2]} 2. e5 {[%clk 0:02:59.6]}
2... Nd5 {[%clk 0:02:57.8]} 3. Bc4 {[%clk 0:02:58.5]} 3... Nb6 {[%clk
0:02:52.5]} 4. Bb3 {[%clk 0:02:58.5]} 4... d6 {[%clk 0:02:52.7]} 5. exd6 {[%clk
0:02:58.4]} 5... cxd6 {[%clk 0:02:51.4]} 6. d4 {[%clk 0:02:58.5]} 6... g6 {[%clk
0:02:47.6]} 7. Nf3 {[%clk 0:02:58.3]} 7... Bg7 {[%clk 0:02:48]} 8. O-O {[%clk
0:02:57.4]} 8... O-O {[%clk 0:02:48.5]} 9. h3 {[%clk 0:02:57.6]} 9... Nc6 {[%clk
0:02:48]} 10. c3 {[%clk 0:02:57.5]} 10... Bf5 {[%clk 0:02:44.5]} 11. Bg5 {[%clk
0:02:53.6]} 11... Qc7 {[%clk 0:02:34.2]} 12. Re1 {[%clk 0:02:51.9]} 12... Rfe8
{[%clk 0:02:27.3]} 13. a4 {[%clk 0:02:48.2]} 13... Na5 {[%clk 0:02:26.5]} 14.
Bc2 {[%clk 0:02:41.5]} 14... Bxc2 {[%clk 0:02:05.9]} 15. Qxc2 {[%clk 0:02:42.4]}
15... Rac8 {[%clk 0:02:05.1]} 16. Na3 {[%clk 0:02:39.2]} 16... a6 {[%clk
0:01:59.2]} 17. Rac1 {[%clk 0:02:32]} 17... h6 {[%clk 0:01:47.3]} 18. Bh4 {[%clk
0:02:27.8]} 18... Qd7 {[%clk 0:01:33.3]} 19. b4 {[%clk 0:02:09.9]} 19... Nac4
{[%clk 0:01:26.9]} 20. Nxc4 {[%clk 0:02:06.3]} 20... Rxc4 {[%clk 0:01:19.7]} 21.
a5 {[%clk 0:02:03.5]} 21... Nd5 {[%clk 0:01:19.8]} 22. Qb3 {[%clk 0:01:39.9]}
22... Rec8 {[%clk 0:01:19.3]} 23. Nd2 {[%clk 0:01:17.8]} 23... Rxc3 {[%clk
0:01:03.7]} 24. Rxc3 {[%clk 0:01:16.2]} 24... Nxc3 {[%clk 0:01:03.1]} 25. Rxe7
{[%clk 0:01:13.8]} 25... Qf5 {[%clk 0:01:01.9]} 26. Nf3 {[%clk 0:00:52.9]} 26...
Ne4 {[%clk 0:00:38.5]} 27. Rxb7 {[%clk 0:00:45.1]} 27... Rc1+ {[%clk 0:00:35.9]}
28. Kh2 {[%clk 0:00:44]} 28... g5 {[%clk 0:00:18.2]} 29. Bg3 {[%clk 0:00:42.5]}
29... Nxg3 {[%clk 0:00:18.4]} 30. fxg3 {[%clk 0:00:39.8]} 30... h5 {[%clk
0:00:17.9]} 31. Rb8+ {[%clk 0:00:23.7]} 31... Kh7 {[%clk 0:00:17.6]} 32. Qe3
{[%clk 0:00:15.9]} 32... Qb1 {[%clk 0:00:09.2]} 33. Ng1 {[%clk 0:00:13.9]} 33...
f6 {[%clk 0:00:07.8]} 34. Re8 {[%clk 0:00:09.6]} 34... Rd1 {[%clk 0:00:05.9]}
35. Qe4+ {[%clk 0:00:07.7]} 35... Qxe4 {[%clk 0:00:05]} 36. Rxe4 {[%clk
0:00:06.6]} 36... f5 {[%clk 0:00:04.8]} 37. Re7 {[%clk 0:00:02.5]} 37... g4
{[%clk 0:00:04.4]} 38. hxg4 {[%clk 0:00:01.7]} 38... hxg4 {[%clk 0:00:04.1]} 39.
Ne2 {[%clk 0:00:02.6]} 39... Re1 {[%clk 0:00:04.1]} 40. Nf4 {[%clk 0:00:03.1]}
40... Rxe7 {[%clk 0:00:03]} 0-1

[Event "Early-Titled-Tuesday-Blitz-January-30-2024"]
[Site "Chess.com"]
[Date "2024.01.30"]
[Round "6"]
[White "Anton_Demchenko"]
[Black "Polish_fighter3000"]
[Result "0-1"]
[WhiteElo "2949"]
[BlackElo "3069"]
[TimeControl "180+1"]
[EndTime "9:09:12 PST"]
[Termination "Polish_fighter3000 won by resignation"]

1. e4 {[%clk 0:03:00.9]} 1... e5 {[%clk 0:02:59.2]} 2. Nf3 {[%clk 0:03:00.7]}
2... Nc6 {[%clk 0:02:59.8]} 3. Bc4 {[%clk 0:03:01.2]} 3... Bc5 {[%clk
0:03:00.3]} 4. d3 {[%clk 0:03:01.7]} 4... Nf6 {[%clk 0:03:00.7]} 5. Bg5 {[%clk
0:03:02.1]} 5... h6 {[%clk 0:03:00.3]} 6. Bh4 {[%clk 0:03:02.8]} 6... Be7 {[%clk
0:02:59.5]} 7. Bg3 {[%clk 0:03:02.8]} 7... d6 {[%clk 0:02:59.4]} 8. a4 {[%clk
0:03:03.5]} 8... O-O {[%clk 0:02:57.8]} 9. h3 {[%clk 0:03:03]} 9... Kh8 {[%clk
0:02:34.1]} 10. Nc3 {[%clk 0:03:01.3]} 10... Be6 {[%clk 0:02:33.5]} 11. Bxe6
{[%clk 0:02:44.1]} 11... fxe6 {[%clk 0:02:34.4]} 12. O-O {[%clk 0:02:39.6]}
12... a6 {[%clk 0:02:27.8]} 13. Nb1 {[%clk 0:02:37.8]} 13... Qe8 {[%clk
0:02:15.3]} 14. c3 {[%clk 0:02:33]} 14... Nh5 {[%clk 0:02:12.2]} 15. Nbd2 {[%clk
0:02:32.2]} 15... Nxg3 {[%clk 0:01:58.9]} 16. fxg3 {[%clk 0:02:31.6]} 16... a5
{[%clk 0:01:55.1]} 17. Qb3 {[%clk 0:02:30.3]} 17... Qd7 {[%clk 0:01:54.4]} 18.
Kh2 {[%clk 0:02:29.6]} 18... Kh7 {[%clk 0:01:49.7]} 19. Rae1 {[%clk 0:02:23.5]}
19... b6 {[%clk 0:01:46.4]} 20. Qb5 {[%clk 0:02:22]} 20... Rad8 {[%clk
0:01:44.6]} 21. Nc4 {[%clk 0:02:16.2]} 21... Nb8 {[%clk 0:01:36.2]} 22. Qb3
{[%clk 0:02:16.1]} 22... Na6 {[%clk 0:01:35.3]} 23. Qc2 {[%clk 0:02:10.8]} 23...
Kg8 {[%clk 0:01:32.6]} 24. b3 {[%clk 0:01:59.7]} 24... Nc5 {[%clk 0:01:26.6]}
25. Rf2 {[%clk 0:01:36.4]} 25... Ra8 {[%clk 0:01:12.4]} 26. d4 {[%clk 0:01:24]}
26... exd4 {[%clk 0:01:10.6]} 27. cxd4 {[%clk 0:01:24.1]} 27... Na6 {[%clk
0:01:10.7]} 28. Ref1 {[%clk 0:01:10.6]} 28... Nb4 {[%clk 0:01:09.4]} 29. Qe2
{[%clk 0:01:11.2]} 29... Rae8 {[%clk 0:01:02.8]} 30. Nh4 {[%clk 0:00:53.8]}
30... Rxf2 {[%clk 0:00:59.9]} 31. Rxf2 {[%clk 0:00:49.9]} 31... Bxh4 {[%clk
0:00:57.4]} 32. gxh4 {[%clk 0:00:50.8]} 32... Qe7 {[%clk 0:00:55.4]} 33. Qg4
{[%clk 0:00:47.4]} 33... Nc6 {[%clk 0:00:53.7]} 34. Qd1 {[%clk 0:00:40.4]} 34...
Qxh4 {[%clk 0:00:46.6]} 35. Qf3 {[%clk 0:00:39]} 35... Nxd4 {[%clk 0:00:23.2]}
36. Qf7+ {[%clk 0:00:38.6]} 36... Kh7 {[%clk 0:00:23.8]} 37. Rd2 {[%clk
0:00:39]} 37... Re7 {[%clk 0:00:24.1]} 38. Qf8 {[%clk 0:00:34]} 38... Nxb3
{[%clk 0:00:14.6]} 39. Rf2 {[%clk 0:00:29.7]} 39... Nc5 {[%clk 0:00:11.9]} 40.
Rf4 {[%clk 0:00:30.1]} 40... Re8 {[%clk 0:00:09.4]} 41. Qf7 {[%clk 0:00:23.3]}
41... Qe7 {[%clk 0:00:09.6]} 42. Qh5 {[%clk 0:00:24]} 42... Rf8 {[%clk
0:00:09.4]} 43. Rg4 {[%clk 0:00:20.8]} 43... Qf7 {[%clk 0:00:09.3]} 44. Qh4
{[%clk 0:00:21.6]} 44... Qf6 {[%clk 0:00:09.6]} 45. Qg3 {[%clk 0:00:21.3]} 45...
Nd7 {[%clk 0:00:08.4]} 46. Na3 {[%clk 0:00:06.4]} 46... Ne5 {[%clk 0:00:07.9]}
47. Rh4 {[%clk 0:00:05.8]} 47... g5 {[%clk 0:00:06.8]} 48. Rh5 {[%clk
0:00:05.8]} 48... Qg6 {[%clk 0:00:07.2]} 0-1

[Event "Early-Titled-Tuesday-Blitz-January-30-2024"]
[Site "Chess.com"]
[Date "2024.01.30"]
[Round "6"]
[White "OhanyanEminChess"]
[Black "wannabe2700"]
[Result "0-1"]
[WhiteElo "2800"]
[BlackElo "2630"]
[TimeControl "180+1"]
[EndTime "9:09:12 PST"]
[Termination "wannabe2700 won on time"]

1. e4 {[%clk 0:03:00.9]} 1... c5 {[%clk 0:02:59.1]} 2. Nf3 {[%clk 0:03:01]} 2...
e6 {[%clk 0:02:59.3]} 3. d4 {[%clk 0:03:01.2]} 3... cxd4 {[%clk 0:03:00.2]} 4.
Nxd4 {[%clk 0:03:02]} 4... Nf6 {[%clk 0:03:00.4]} 5. Nc3 {[%clk 0:03:02.1]} 5...
Nc6 {[%clk 0:03:00.9]} 6. g3 {[%clk 0:02:57.3]} 6... Bb4 {[%clk 0:02:58.5]} 7.
Bg2 {[%clk 0:02:56.8]} 7... d5 {[%clk 0:02:58.9]} 8. O-O {[%clk 0:02:47.2]} 8...
Bxc3 {[%clk 0:02:56.9]} 9. Nxc6 {[%clk 0:02:34.6]} 9... bxc6 {[%clk 0:02:57.3]}
10. bxc3 {[%clk 0:02:34.7]} 10... Nxe4 {[%clk 0:02:55.3]} 11. Bxe4 {[%clk
0:02:33.1]} 11... dxe4 {[%clk 0:02:56.2]} 12. Qxd8+ {[%clk 0:02:26]} 12... Kxd8
{[%clk 0:02:57.1]} 13. Rd1+ {[%clk 0:02:26.5]} 13... Ke8 {[%clk 0:02:49.3]} 14.
Rb1 {[%clk 0:02:16.8]} 14... f6 {[%clk 0:02:47]} 15. Rd6 {[%clk 0:02:12.6]}
15... Kf7 {[%clk 0:02:45.7]} 16. Rxc6 {[%clk 0:02:10.9]} 16... Rd8 {[%clk
0:02:45.7]} 17. Rc7+ {[%clk 0:02:10]} 17... Kg6 {[%clk 0:02:43.7]} 18. Be3
{[%clk 0:02:09.5]} 18... a5 {[%clk 0:02:38.4]} 19. g4 {[%clk 0:02:00.5]} 19...
e5 {[%clk 0:02:37.5]} 20. h3 {[%clk 0:01:52]} 20... Rd7 {[%clk 0:01:20.4]} 21.
Rc5 {[%clk 0:01:48]} 21... h5 {[%clk 0:01:15.7]} 22. Kg2 {[%clk 0:01:30.5]}
22... hxg4 {[%clk 0:01:15.4]} 23. hxg4 {[%clk 0:01:31.4]} 23... Re7 {[%clk
0:01:15.4]} 24. Kg3 {[%clk 0:01:31.1]} 24... Be6 {[%clk 0:01:14.5]} 25. Rb6
{[%clk 0:01:25]} 25... Bxa2 {[%clk 0:01:13]} 26. c4 {[%clk 0:01:25.1]} 26... a4
{[%clk 0:01:12.7]} 27. Rb2 {[%clk 0:01:23.4]} 27... Bxc4 {[%clk 0:01:06.1]} 28.
Rxc4 {[%clk 0:01:24.3]} 28... a3 {[%clk 0:01:02.7]} 29. Ra2 {[%clk 0:01:24.1]}
29... Rb7 {[%clk 0:01:02.8]} 30. Rxe4 {[%clk 0:01:13.7]} 30... Rb2 {[%clk
0:00:40.8]} 31. Rxb2 {[%clk 0:01:13]} 31... axb2 {[%clk 0:00:41.7]} 32. Rb4
{[%clk 0:01:13.2]} 32... Ra2 {[%clk 0:00:42.3]} 33. c3 {[%clk 0:01:13.7]} 33...
Kf7 {[%clk 0:00:40]} 34. Rb6 {[%clk 0:01:05.6]} 34... g6 {[%clk 0:00:38.1]} 35.
c4 {[%clk 0:00:42.1]} 35... Ke8 {[%clk 0:00:37.4]} 36. c5 {[%clk 0:00:31.1]}
36... Kd7 {[%clk 0:00:37.1]} 37. f4 {[%clk 0:00:18.4]} 37... exf4+ {[%clk
0:00:27.2]} 38. Bxf4 {[%clk 0:00:19.3]} 38... Ra3+ {[%clk 0:00:24.7]} 39. Kf2
{[%clk 0:00:18.4]} 39... Ra4 {[%clk 0:00:24.2]} 40. Kf3 {[%clk 0:00:11.9]} 40...
Ra3+ {[%clk 0:00:23.3]} 41. Ke2 {[%clk 0:00:06.9]} 41... Ra4 {[%clk 0:00:23.2]}
42. c6+ {[%clk 0:00:07.2]} 42... Ke6 {[%clk 0:00:20.4]} 43. c7+ {[%clk
0:00:05.4]} 43... Kd7 {[%clk 0:00:21.3]} 44. Rb8 {[%clk 0:00:04.1]} 44... Rc4
{[%clk 0:00:20.8]} 45. Bg3 {[%clk 0:00:01.7]} 45... Rc3 {[%clk 0:00:16.1]} 46.
Kd2 {[%clk 0:00:01.7]} 46... b1=Q {[%clk 0:00:13.4]} 47. Rd8+ {[%clk 0:00:01.6]}
47... Ke7 {[%clk 0:00:13.3]} 48. Kxc3 {[%clk 0:00:01.9]} 48... Qc1+ {[%clk
0:00:12.5]} 49. Kb4 {[%clk 0:00:02.1]} 49... Qb2+ {[%clk 0:00:12.2]} 50. Kc5
{[%clk 0:00:01.4]} 50... Qc3+ {[%clk 0:00:12.4]} 51. Kb6 {[%clk 0:00:02]} 51...
Qb3+ {[%clk 0:00:10.7]} 0-1